bitfinex/quotes_BTCUSD_20230109
["timestamp","ask_amount","ask_price","bid_price","bid_amount"]
[1673282094559,0.02172092,17331.0,17330.0,3.54072192]
[1673282095073,0.18763386,17331.0,17330.0,3.54072192]
[1673282095320,0.36049668,17331.0,17330.0,3.00391836]
[1673282095842,0.36049668,17331.0,17330.0,2.83741836]
[1673282098598,0.36149668,17331.0,17330.0,2.83741836]
[1673282098845,0.36049668,17331.0,17330.0,2.83741836]
[1673282100088,0.18763386,17331.0,17330.0,2.83741836]
[1673282100616,2.56905653,17331.0,17330.0,2.83741836]
[1673282100862,3.30837864,17331.0,17330.0,2.83741836]
[1673282101145,3.48117019,17331.0,17330.0,2.83741836]
[1673282101362,3.31525725,17331.0,17330.0,2.83357136]
[1673282101856,3.07864725,17331.0,17330.0,2.83357136]
[1673282102108,2.90573299,17331.0,17330.0,2.83357136]
[1673282102883,2.90296999,17331.0,17330.0,2.83357136]
[1673282103397,2.32596999,17331.0,17330.0,2.83357136]
[1673282104836,1.92596999,17331.0,17330.0,2.83357136]
[1673282105124,1.08967103,17331.0,17330.0,2.83357136]
[1673282106665,1.08967103,17331.0,17330.0,2.83197296]
[1673282106920,0.72727903,17331.0,17330.0,2.83197296]
[1673282107173,1.08967103,17331.0,17330.0,2.83197296]
[1673282107426,1.08967103,17331.0,17330.0,1.69525106]
[1673282107427,3.25707708,17331.0,17330.0,1.69525106]
[1673282107942,3.31587576,17331.0,17330.0,1.69525106]
[1673282108448,3.48247576,17331.0,17330.0,1.69525106]
[1673282108699,3.99267708,17331.0,17330.0,1.68525106]
[1673282108943,3.41567708,17331.0,17330.0,1.68525106]
[1673282109156,3.41239762,17331.0,17330.0,1.68525106]
[1673282109404,4.06559894,17331.0,17330.0,1.69025106]
[1673282109666,3.41239762,17331.0,17330.0,1.68525106]
[1673282109920,3.54739762,17331.0,17330.0,1.69025106]
[1673282110171,3.67940743,17331.0,17330.0,1.69025106]
[1673282110670,3.16448557,17331.0,17330.0,1.69025106]
[1673282110913,3.34348585,17331.0,17330.0,1.69025106]
[1673282111658,2.67425522,17331.0,17330.0,1.69025106]
[1673282112426,0.94883994,17331.0,17330.0,1.69025106]
[1673282112695,0.94883994,17331.0,17330.0,2.39955734]
[1673282112696,0.31875393,17331.0,17330.0,2.39955734]
[1673282112957,0.14595792,17331.0,17330.0,3.54786322]
[1673282113209,0.14595792,17331.0,17330.0,4.08261734]
[1673282113480,0.14595792,17331.0,17330.0,4.24205522]
[1673282114465,0.14595792,17331.0,17330.0,4.23705522]
[1673282114466,0.01095792,17331.0,17330.0,4.23705522]
[1673282114715,0.13395792,17331.0,17330.0,4.24305522]
[1673282116514,0.13395792,17331.0,17330.0,4.82008922]
[1673282116765,0.13395792,17331.0,17330.0,4.99200557]
[1673282118596,0.13395792,17331.0,17330.0,4.82008922]
[1673282119586,0.13395792,17331.0,17330.0,4.99200557]
[1673282120076,0.13395792,17331.0,17330.0,5.82046552]
[1673282120343,0.13395792,17331.0,17330.0,5.82046995]
[1673282120615,0.13395792,17331.0,17330.0,5.2498801]
[1673282120857,0.13395792,17331.0,17330.0,4.99200557]
[1673282121846,0.13395792,17331.0,17330.0,5.2498801]
[1673282122109,0.13395792,17331.0,17330.0,5.99282948]
[1673282122355,0.13395792,17331.0,17330.0,5.8215639]
[1673282122635,0.13395792,17331.0,17330.0,5.25053087]
[1673282122898,0.13395792,17331.0,17330.0,5.65445]
[1673282123114,0.13395792,17331.0,17330.0,5.82571558]
[1673282123405,0.13395792,17331.0,17330.0,5.6543832]
[1673282123900,0.13395792,17331.0,17330.0,5.6800197]
[1673282124200,0.13395792,17331.0,17330.0,5.08386407]
[1673282124475,0.13395792,17331.0,17330.0,4.97356407]
[1673282124722,0.13395792,17331.0,17330.0,4.97372126]
[1673282124995,0.13395792,17331.0,17330.0,5.57064843]
[1673282125523,0.13395792,17331.0,17330.0,5.57051799]
[1673282125778,0.13395792,17331.0,17330.0,5.57098556]
[1673282127853,0.0129425,17332.0,17331.0,1.39335478]
[1673282128083,0.0129425,17332.0,17331.0,3.57960262]
[1673282128849,0.0129425,17332.0,17331.0,3.82960262]
[1673282129378,0.0129425,17332.0,17331.0,3.72860262]
[1673282129636,0.0129425,17332.0,17331.0,5.61292787]
[1673282129891,0.0129425,17332.0,17331.0,5.44156575]
[1673282130152,0.0129425,17332.0,17331.0,5.6134821]
[1673282130617,0.0129425,17332.0,17331.0,5.44235534]
[1673282132352,0.0129425,17332.0,17331.0,5.44135534]
[1673282132603,0.0129425,17332.0,17331.0,5.62458271]
[1673282133846,0.0129425,17332.0,17331.0,5.32458271]
[1673282134062,0.0129425,17332.0,17331.0,5.45305404]
[1673282135864,0.0129425,17332.0,17331.0,5.4516421]
[1673282136127,0.0129425,17332.0,17331.0,3.70905982]
[1673282137353,0.0129425,17332.0,17331.0,3.70405982]
[1673282139131,0.0129425,17332.0,17331.0,3.32207579]
[1673282139132,0.25062039,17332.0,17331.0,3.32207579]
[1673282139374,0.0129425,17332.0,17331.0,3.32207579]
[1673282140381,0.0129425,17332.0,17331.0,3.75304394]
[1673282140626,0.0129425,17332.0,17331.0,3.49437982]
[1673282140869,0.0129425,17332.0,17331.0,3.75304394]
[1673282141111,0.0129425,17332.0,17331.0,3.49437982]
[1673282141364,0.0129425,17332.0,17331.0,3.75304394]
[1673282142391,0.0129425,17332.0,17331.0,3.49437982]
[1673282143402,0.447859,17336.0,17331.0,7.01252805]
[1673282143403,0.047859,17336.0,17331.0,7.01252805]
[1673282143661,0.047859,17336.0,17333.0,0.2]
[1673282143934,0.01570882,17337.0,17333.0,0.2]
[1673282143935,0.01570882,17337.0,17335.0,0.17232605]
[1673282144179,0.01570882,17337.0,17336.0,3.87943059]
[1673282144683,0.01570882,17337.0,17336.0,3.70706847]
[1673282144929,0.01570882,17337.0,17336.0,3.95706847]
[1673282145709,0.01570882,17337.0,17336.0,3.96506847]
[1673282146975,0.01570882,17337.0,17336.0,3.9652256]
[1673282147247,0.01570882,17337.0,17336.0,4.2652256]
[1673282147774,0.01433049,17338.0,17337.0,0.61897621]
[1673282148094,0.01433049,17338.0,17337.0,3.33515841]
[1673282148325,0.01419729,17338.0,17337.0,3.33515841]
[1673282149079,0.01419729,17338.0,17337.0,3.58515841]
[1673282149325,0.01419729,17338.0,17337.0,3.75748446]
[1673282149584,0.01419729,17338.0,17337.0,3.95339524]
[1673282150338,0.01419729,17338.0,17337.0,4.54734291]
[1673282150844,0.01419729,17338.0,17337.0,4.24734291]
[1673282151351,0.01419729,17338.0,17337.0,4.54734291]
[1673282151866,0.01419729,17338.0,17337.0,5.39516578]
[1673282152132,0.01419729,17338.0,17337.0,3.70220432]
[1673282152396,0.01419729,17338.0,17337.0,3.27138919]
[1673282152931,0.01419729,17338.0,17337.0,2.76423499]
[1673282154714,0.01419729,17338.0,17337.0,3.2616922]
[1673282156009,0.01419729,17338.0,17337.0,2.76423499]
[1673282158283,0.01419729,17338.0,17337.0,3.34103599]
[1673282159850,0.01419729,17338.0,17337.0,3.82577995]
[1673282163388,0.01419729,17338.0,17337.0,3.34103599]
[1673282165413,0.01419729,17338.0,17337.0,2.76423499]
[1673282165670,0.01419729,17338.0,17337.0,1.61576999]
[1673282167771,0.25080729,17338.0,17337.0,0.39829621]
[1673282168025,0.8873058,17338.0,17337.0,0.39829621]
[1673282168271,1.20827807,17338.0,17337.0,0.39829621]
[1673282168787,2.02272296,17338.0,17337.0,0.39829621]
[1673282169038,2.36181207,17338.0,17337.0,0.25929621]
[1673282169588,2.36281207,17338.0,17337.0,0.43710543]
[1673282170068,2.91276499,17338.0,17337.0,0.43710543]
[1673282170320,2.91276499,17338.0,17337.0,0.42780922]
[1673282170569,4.047726,17338.0,17337.0,0.28880922]
[1673282170810,4.058726,17338.0,17337.0,0.28980922]
[1673282171059,4.047726,17338.0,17337.0,0.28880922]
[1673282171338,4.047726,17338.0,17337.0,0.30171068]
[1673282171339,2.53460808,17338.0,17337.0,0.30171068]
[1673282171583,2.53460808,17338.0,17337.0,0.28871068]
[1673282171839,2.54560808,17338.0,17337.0,0.28971068]
[1673282172122,2.36181207,17338.0,17337.0,0.28871068]
[1673282172332,2.37181207,17338.0,17337.0,0.29671068]
[1673282173094,2.74986898,17338.0,17337.0,0.29671068]
[1673282173598,2.37181207,17338.0,17337.0,0.29671068]
[1673282174104,0.98166807,17338.0,17337.0,0.4690728]
[1673282174362,0.61927607,17338.0,17337.0,0.29671068]
[1673282174881,0.02419729,17338.0,17337.0,1.27351168]
[1673282175188,0.01419729,17338.0,17337.0,1.84231268]
[1673282175406,0.01419729,17338.0,17337.0,1.85031268]
[1673282175407,0.02419729,17338.0,17337.0,1.85031268]
[1673282175982,0.02419729,17338.0,17337.0,2.42044023]
[1673282176320,0.01419729,17338.0,17337.0,4.87536594]
[1673282176325,0.01519729,17338.0,17337.0,6.01532987]
[1673282176565,0.01519729,17338.0,17337.0,4.11532987]
[1673282176799,0.01519729,17338.0,17337.0,3.94300382]
[1673282177038,0.01519729,17338.0,17337.0,4.00091085]
[1673282177299,0.01519729,17338.0,17337.0,3.43584962]
[1673282177573,0.25187518,17338.0,17337.0,2.31904862]
[1673282177803,0.25187518,17338.0,17337.0,1.95665662]
[1673282177804,0.01419729,17338.0,17337.0,1.95665662]
[1673282178049,0.01519729,17338.0,17337.0,0.94305462]
[1673282178795,0.08420066,17338.0,17337.0,0.94305462]
[1673282179999,0.01519729,17338.0,17337.0,0.94305462]
[1673282180721,0.01519729,17338.0,17337.0,0.42871068]
[1673282180955,0.42269729,17338.0,17337.0,0.28871068]
[1673282181267,0.02369729,17338.0,17337.0,0.42971068]
[1673282182709,0.01519729,17338.0,17337.0,0.42971068]
[1673282182970,0.01519729,17338.0,17337.0,1.00651168]
[1673282183901,0.01519729,17338.0,17337.0,0.42971068]
[1673282184154,0.08295233,17338.0,17337.0,0.42971068]
[1673282184400,0.01519729,17338.0,17337.0,0.42971068]
[1673282184641,0.41519729,17338.0,17337.0,0.42971068]
[1673282185350,0.01519729,17338.0,17337.0,0.42971068]
[1673282186564,0.41519729,17338.0,17337.0,0.42971068]
[1673282186795,0.01519729,17338.0,17337.0,0.42971068]
[1673282187290,0.01519729,17338.0,17337.0,1.58331268]
[1673282187768,0.01519729,17338.0,17337.0,1.98331268]
[1673282188247,0.01519729,17338.0,17337.0,1.00651168]
[1673282188500,0.01519729,17338.0,17337.0,1.40651168]
[1673282188741,0.01519729,17338.0,17337.0,2.06335379]
[1673282188977,0.01519729,17338.0,17337.0,2.64015479]
[1673282189188,0.01519729,17338.0,17337.0,3.00254679]
[1673282189903,0.01519729,17338.0,17337.0,4.62761712]
[1673282190387,0.01519729,17338.0,17337.0,5.22296927]
[1673282190639,0.01419729,17338.0,17337.0,5.08196927]
[1673282190869,0.01419729,17338.0,17337.0,5.22296927]
[1673282190870,0.01519729,17338.0,17337.0,5.22296927]
[1673282191101,0.01508556,17338.0,17337.0,5.22296927]
[1673282191327,0.01508556,17338.0,17337.0,5.39529533]
[1673282191822,0.01508556,17338.0,17337.0,5.222715]
[1673282192069,0.01508556,17338.0,17337.0,4.25857377]
[1673282192295,0.01508556,17338.0,17337.0,4.25873089]
[1673282193733,0.01508556,17338.0,17337.0,4.51721997]
[1673282194198,0.01508556,17338.0,17337.0,5.11291967]
[1673282194911,0.01508556,17338.0,17337.0,4.51721997]
[1673282195365,0.01508556,17338.0,17337.0,5.11291713]
[1673282195596,0.01508556,17338.0,17337.0,5.11290443]
[1673282195831,0.01508556,17338.0,17337.0,5.28548476]
[1673282196067,0.01508556,17338.0,17337.0,5.58548476]
[1673282196545,0.0167463,17340.0,17338.0,0.4091478]
[1673282196841,0.0167463,17340.0,17339.0,1.901686]
[1673282197318,0.0167463,17340.0,17339.0,2.301686]
[1673282197563,0.0167463,17340.0,17339.0,2.551686]
[1673282197868,0.0167463,17340.0,17339.0,2.565686]
[1673282198275,0.0167463,17340.0,17339.0,2.565746]
[1673282200442,0.0167463,17340.0,17339.0,2.5659031]
[1673282201519,0.0167463,17340.0,17339.0,3.28345314]
[1673282202810,0.0167463,17340.0,17339.0,3.11181204]
[1673282203064,0.0167463,17340.0,17339.0,3.47420404]
[1673282203304,0.0167463,17340.0,17339.0,3.11181204]
[1673282203798,0.0167463,17340.0,17339.0,3.47420404]
[1673282204268,0.0167463,17340.0,17339.0,3.47414404]
[1673282207532,0.0167463,17340.0,17339.0,3.47430114]
[1673282208022,0.0167463,17340.0,17339.0,2.8677511]
[1673282208273,0.0167463,17340.0,17339.0,4.54420115]
[1673282208274,0.0166797,17340.0,17339.0,4.54420115]
[1673282208528,0.0166797,17340.0,17339.0,4.80269023]
[1673282208780,0.0166797,17340.0,17339.0,5.38642155]
[1673282209040,0.0166797,17340.0,17339.0,5.55910847]
[1673282209285,0.0166797,17340.0,17339.0,5.14397961]
[1673282209286,7.97e-05,17340.0,17339.0,5.14397961]
[1673282209527,0.01455907,17343.0,17340.0,1.10211427]
[1673282209764,0.01455907,17343.0,17342.0,0.1106]
[1673282210008,0.01455907,17343.0,17342.0,2.5333442]
[1673282210511,0.01455907,17343.0,17342.0,3.3599782]
[1673282211254,0.01455907,17343.0,17342.0,2.993824]
[1673282211502,0.01455907,17343.0,17342.0,3.5009782]
[1673282212040,0.01455907,17343.0,17342.0,4.81311828]
[1673282212295,0.01455907,17343.0,17342.0,5.07793238]
[1673282212555,0.01455907,17343.0,17342.0,4.49508594]
[1673282212805,0.01455907,17343.0,17342.0,4.23750976]
[1673282213050,0.01455907,17343.0,17342.0,5.07982183]
[1673282213298,0.01455907,17343.0,17342.0,5.66253928]
[1673282213539,0.01455907,17343.0,17342.0,5.95854864]
[1673282213794,0.01455907,17343.0,17342.0,5.47454244]
[1673282214048,0.01455907,17343.0,17342.0,7.39779758]
[1673282214301,0.01585712,17344.0,17342.0,6.54827839]
[1673282214550,0.01585712,17344.0,17343.0,2.30236854]
[1673282214799,0.01585712,17344.0,17343.0,3.34457054]
[1673282215311,0.01585712,17344.0,17343.0,2.63962287]
[1673282215557,0.01585712,17344.0,17343.0,2.1001324]
[1673282215806,0.25353501,17344.0,17343.0,2.2111324]
[1673282216064,0.75194463,17344.0,17343.0,0.25]
[1673282216320,0.02435712,17344.0,17343.0,0.25]
[1673282216572,0.13535712,17344.0,17343.0,0.25006]
[1673282216820,0.53535712,17344.0,17343.0,0.25006]
[1673282217074,0.53635712,17344.0,17343.0,0.38906]
[1673282217313,0.89874912,17344.0,17343.0,0.38906]
[1673282217559,0.49774912,17344.0,17343.0,0.25006]
[1673282217816,0.02435712,17344.0,17343.0,0.26406]
[1673282218062,0.02435712,17344.0,17343.0,1.14988306]
[1673282218063,0.01585712,17344.0,17343.0,1.14988306]
[1673282218300,0.01296975,17344.0,17343.0,2.31651394]
[1673282218552,0.01296975,17344.0,17343.0,2.48881606]
[1673282218796,0.01296975,17344.0,17343.0,2.80889437]
[1673282219819,0.02239624,17346.0,17344.0,0.40684028]
[1673282220074,0.02239624,17346.0,17345.0,0.747811]
[1673282220327,0.02239624,17346.0,17345.0,1.36504035]
[1673282220574,0.02239624,17346.0,17345.0,0.747811]
[1673282220826,0.02239624,17346.0,17345.0,0.997811]
[1673282221560,0.02339624,17346.0,17345.0,0.997811]
[1673282221812,0.02239624,17346.0,17345.0,1.574346]
[1673282222068,0.02339624,17346.0,17345.0,1.714346]
[1673282222320,0.02339624,17346.0,17345.0,3.70877597]
[1673282222567,0.02339624,17346.0,17345.0,3.23641385]
[1673282222831,0.06521668,17349.0,17345.0,4.36244368]
[1673282223078,0.06521668,17349.0,17347.0,0.91654423]
[1673282223359,0.01599436,17349.0,17348.0,1.324109]
[1673282224114,0.54698252,17349.0,17347.0,0.25]
[1673282224359,0.01099436,17349.0,17347.0,0.25]
[1673282224616,0.68590187,17349.0,17347.0,0.25006]
[1673282224857,0.68590187,17349.0,17348.0,0.14]
[1673282225096,0.68590187,17349.0,17347.0,0.65006]
[1673282225343,0.68590187,17349.0,17347.0,0.40006]
[1673282225588,0.68590187,17349.0,17347.0,0.25006]
[1673282226081,0.68590187,17349.0,17347.0,0.65006]
[1673282226341,0.68590187,17349.0,17347.0,0.79106]
[1673282226594,0.68590187,17349.0,17347.0,0.65006]
[1673282226838,0.68590187,17349.0,17347.0,0.79122021]
[1673282227097,0.68590187,17349.0,17347.0,0.39106]
[1673282227360,0.60973422,17348.0,17347.0,0.25006]
[1673282227611,0.90948497,17348.0,17347.0,0.39106]
[1673282227866,1.15369908,17348.0,17347.0,0.25006]
[1673282228125,1.15369908,17348.0,17347.0,0.39106]
[1673282228630,0.72923422,17348.0,17347.0,0.39106]
[1673282228888,1.09162622,17348.0,17347.0,0.25006]
[1673282229156,1.09162622,17348.0,17347.0,0.26006]
[1673282229442,1.09162622,17348.0,17347.0,0.25006]
[1673282229666,1.09162622,17348.0,17347.0,0.251]
[1673282229912,1.65288828,17348.0,17347.0,0.251]
[1673282230159,2.32932328,17348.0,17347.0,0.251]
[1673282230691,2.62932328,17348.0,17347.0,0.251]
[1673282230948,1.569327,17348.0,17347.0,0.25]
[1673282231204,0.770892,17348.0,17347.0,1.09996871]
[1673282231459,0.770892,17348.0,17347.0,0.92760659]
[1673282231717,0.4085,17348.0,17347.0,0.92760659]
[1673282231969,0.770892,17348.0,17347.0,0.257]
[1673282232219,0.9456051,17348.0,17347.0,0.25]
[1673282232473,0.9456051,17348.0,17347.0,0.251]
[1673282232725,2.04291781,17348.0,17347.0,0.251]
[1673282232977,1.80523992,17348.0,17347.0,0.251]
[1673282233979,2.38167492,17348.0,17347.0,0.251]
[1673282234239,2.68167492,17348.0,17347.0,0.251]
[1673282234496,2.85447093,17348.0,17347.0,0.251]
[1673282235271,3.43090593,17348.0,17347.0,0.251]
[1673282235515,3.69009994,17348.0,17347.0,0.251]
[1673282236033,3.86290421,17348.0,17347.0,0.251]
[1673282236278,3.68950692,17348.0,17347.0,0.251]
[1673282237094,3.86290421,17348.0,17347.0,0.251]
[1673282237328,4.32263955,17348.0,17347.0,0.251]
[1673282237838,4.43263955,17348.0,17347.0,0.251]
[1673282238097,4.43153479,17348.0,17347.0,0.251]
[1673282238370,4.08697267,17348.0,17347.0,0.251]
[1673282238668,4.14456667,17348.0,17347.0,0.251]
[1673282239409,4.42782201,17348.0,17347.0,0.251]
[1673282239659,4.42782201,17348.0,17347.0,0.12491902]
[1673282239912,3.78998719,17348.0,17347.0,0.12491902]
[1673282240170,3.66041271,17348.0,17347.0,0.12491902]
[1673282240421,5.79592893,17348.0,17347.0,0.12491902]
[1673282240672,6.31413025,17348.0,17347.0,0.04448448]
[1673282240924,6.31413025,17348.0,17346.0,0.06067236]
[1673282241167,2.45188607,17347.0,17346.0,0.31067236]
[1673282241415,4.04404937,17347.0,17346.0,0.31067236]
[1673282241684,3.4501017,17347.0,17346.0,0.31067236]
[1673282241939,1.88896074,17347.0,17346.0,0.31067236]
[1673282242188,1.88896074,17347.0,17346.0,0.32167236]
[1673282242189,1.94196074,17347.0,17346.0,0.32167236]
[1673282242490,2.06125148,17347.0,17346.0,0.31067236]
[1673282242717,2.06125148,17347.0,17346.0,0.32167236]
[1673282242718,1.94198993,17347.0,17346.0,0.32167236]
[1673282242982,2.73591408,17347.0,17346.0,0.32167236]
[1673282243239,3.02508954,17347.0,17346.0,0.32167236]
[1673282243501,2.85282804,17347.0,17346.0,0.32167236]
[1673282243756,3.72929604,17347.0,17346.0,0.32167236]
[1673282244014,4.2821487,17347.0,17346.0,0.32167236]
[1673282244272,3.99057946,17347.0,17346.0,0.31067236]
[1673282244525,4.04457946,17347.0,17346.0,0.32167236]
[1673282244766,3.93757946,17347.0,17346.0,0.31067236]
[1673282245007,3.93757946,17347.0,17346.0,0.32167236]
[1673282245008,3.99057946,17347.0,17346.0,0.32167236]
[1673282245255,3.93757946,17347.0,17346.0,0.31067236]
[1673282245515,3.56085216,17347.0,17346.0,0.32167236]
[1673282245755,3.93770797,17347.0,17346.0,0.31067236]
[1673282246248,4.28241664,17347.0,17346.0,0.31067236]
[1673282246493,3.99048187,17347.0,17346.0,0.31067236]
[1673282246753,3.78495508,17347.0,17346.0,0.07167236]
[1673282247003,3.73195508,17347.0,17346.0,0.06067236]
[1673282247256,3.99329697,17347.0,17346.0,0.06067236]
[1673282247516,4.57282458,17347.0,17346.0,0.07167236]
[1673282247768,4.57282458,17347.0,17346.0,0.06067236]
[1673282247769,4.17411591,17347.0,17346.0,0.06067236]
[1673282248018,4.22711591,17347.0,17346.0,0.07167236]
[1673282248273,4.22711591,17347.0,17346.0,0.06067236]
[1673282248274,3.7432601,17347.0,17346.0,0.06067236]
[1673282248526,3.7972601,17347.0,17346.0,0.07167236]
[1673282249039,3.76954517,17347.0,17346.0,0.07167236]
[1673282249293,4.84780815,17347.0,17346.0,0.06067236]
[1673282249873,4.84780815,17347.0,17346.0,0.06061236]
[1673282250333,4.90206238,17347.0,17346.0,0.07161236]
[1673282250581,4.34364649,17347.0,17346.0,0.06061236]
[1673282250825,5.10715114,17347.0,17346.0,0.07161236]
[1673282251075,5.50970815,17347.0,17346.0,0.06061236]
[1673282251327,5.56270815,17347.0,17346.0,0.07161236]
[1673282251584,5.45570815,17347.0,17346.0,0.06061236]
[1673282251842,5.50870815,17347.0,17346.0,0.07161236]
[1673282252092,5.53067527,17347.0,17346.0,0.06061236]
[1673282252344,5.58367527,17347.0,17346.0,0.07161236]
[1673282253122,6.90326148,17347.0,17346.0,3.6e-07]
[1673282253381,0.6079,17345.0,17344.0,0.00690028]
[1673282253669,5.5964624,17345.0,17344.0,0.00690028]
[1673282253921,5.76304623,17345.0,17344.0,0.00759423]
[1673282254410,5.85767418,17345.0,17344.0,0.00759423]
[1673282254656,5.92067418,17345.0,17344.0,0.01859423]
[1673282254901,5.42092586,17345.0,17344.0,0.01859423]
[1673282255155,5.92067418,17345.0,17344.0,0.01859423]
[1673282257752,6.45449604,17345.0,17344.0,0.01859423]
[1673282258016,5.92067418,17345.0,17344.0,0.01859423]
[1673282258518,5.34091988,17345.0,17344.0,0.00759423]
[1673282259038,5.85767418,17345.0,17344.0,0.00759423]
[1673282259551,6.73337418,17345.0,17344.0,0.01859423]
[1673282260079,6.73337418,17345.0,17344.0,0.01853423]
[1673282261628,7.13080474,17345.0,17344.0,0.01853423]
[1673282261857,6.73337418,17345.0,17344.0,0.01853423]
[1673282262109,6.75961457,17345.0,17344.0,0.01853423]
[1673282262365,7.25936289,17345.0,17344.0,0.01853423]
[1673282262612,6.62237418,17345.0,17344.0,0.01853423]
[1673282263387,6.49583832,17345.0,17344.0,0.01853423]
[1673282263638,6.67965965,17345.0,17344.0,0.01853423]
[1673282263895,7.06988124,17345.0,17344.0,0.01853423]
[1673282264146,6.55374655,17345.0,17344.0,0.01853423]
[1673282264399,6.55367667,17345.0,17344.0,0.01853423]
[1673282264648,6.55367667,17345.0,17344.0,2.3e-07]
[1673282264903,7.53445163,17345.0,17340.0,0.02752994]
[1673282265153,0.71321931,17341.0,17340.0,0.02752994]
[1673282265414,5.38091899,17341.0,17340.0,0.02752994]
[1673282265677,4.95199278,17341.0,17340.0,0.00442715]
[1673282265931,5.52150875,17341.0,17340.0,0.01442715]
[1673282266183,4.95199278,17341.0,17338.0,0.00446882]
[1673282266434,0.43023995,17339.0,17338.0,0.00446882]
[1673282266712,3.34233395,17339.0,17338.0,0.00446882]
[1673282266961,3.08418998,17339.0,17338.0,0.00446882]
[1673282267212,2.501094,17339.0,17338.0,0.00446882]
[1673282267462,1.56636,17339.0,17338.0,0.00746882]
[1673282267783,0.989626,17339.0,17338.0,0.00746882]
[1673282267974,0.412892,17339.0,17338.0,0.00746882]
[1673282269304,0.60442382,17339.0,17338.0,0.00746882]
[1673282270319,0.412892,17339.0,17338.0,0.00746882]
[1673282271089,0.0505,17339.0,17338.0,0.86305397]
[1673282271410,0.042,17339.0,17338.0,0.87537397]
[1673282271665,0.042,17339.0,17338.0,1.63776597]
[1673282272189,0.042,17339.0,17338.0,3.27409244]
[1673282273227,0.04842834,17342.0,17338.0,3.89419432]
[1673282273480,0.04842834,17342.0,17341.0,0.2208]
[1673282273736,1.76597093,17346.0,17341.0,0.583192]
[1673282273991,0.75920126,17345.0,17343.0,0.111]
[1673282274199,0.75920126,17345.0,17343.0,0.17236212]
[1673282274481,0.762392,17344.0,17342.0,0.111]
[1673282274728,0.362392,17343.0,17342.0,0.111]
[1673282274973,0.0085,17343.0,17342.0,0.111]
[1673282275734,0.0105,17343.0,17342.0,0.233]
[1673282276518,0.05155,17343.0,17342.0,0.233]
[1673282277015,1.03344867,17343.0,17342.0,0.233]
[1673282277272,1.27112656,17343.0,17342.0,0.233]
[1673282277525,1.20554465,17343.0,17342.0,0.122]
[1673282278528,1.76368862,17343.0,17342.0,0.122]
[1673282278748,0.362392,17342.0,17339.0,1.1851]
[1673282279026,0.0085,17341.0,17339.0,0.4]
[1673282281118,0.0085,17341.0,17339.0,0.448]
[1673282281119,0.0095,17341.0,17339.0,0.448]
[1673282281375,0.0095,17341.0,17339.0,0.048]
[1673282281640,0.56022295,17340.0,17339.0,0.048]
[1673282281891,0.93111495,17340.0,17339.0,0.048]
[1673282282147,2.23624525,17340.0,17339.0,0.048]
[1673282282927,0.362392,17339.0,17338.0,0.00446882]
[1673282283199,0.370892,17339.0,17338.0,0.00446882]
[1673282283421,0.0085,17339.0,17338.0,0.00446882]
[1673282284162,0.0105,17339.0,17338.0,0.12646882]
[1673282284662,0.5918139,17339.0,17338.0,0.12646882]
[1673282284913,0.9542059,17339.0,17338.0,0.12646882]
[1673282285661,1.3542059,17339.0,17338.0,0.12646882]
[1673282286122,1.52630188,17339.0,17338.0,0.37646882]
[1673282286370,2.13134521,17339.0,17338.0,0.37646882]
[1673282286637,3.26622318,17339.0,17338.0,0.40635666]
[1673282287125,4.01505317,17339.0,17338.0,0.40635666]
[1673282287620,4.40752303,17339.0,17338.0,0.40635666]
[1673282287871,4.06333106,17339.0,17338.0,0.29971148]
[1673282288453,4.06460603,17339.0,17338.0,0.29971148]
[1673282288719,4.06460603,17339.0,17338.0,0.25]
[1673282288964,5.22685,17339.0,17338.0,0.255]
[1673282289227,5.83243797,17339.0,17338.0,0.25]
[1673282289481,5.44925,17339.0,17338.0,0.255]
[1673282289995,5.44925,17339.0,17338.0,0.26]
[1673282290242,7.15007197,17339.0,17338.0,0.255]
[1673282290496,7.28307197,17339.0,17338.0,0.26]
[1673282290747,6.46994316,17339.0,17338.0,0.25]
[1673282291008,6.99039071,17339.0,17338.0,0.25]
[1673282291513,6.46994316,17339.0,17338.0,0.12804992]
[1673282291781,6.46994316,17339.0,17338.0,0.005]
[1673282291782,6.24845819,17339.0,17338.0,0.005]
[1673282292061,7.12025819,17339.0,17337.0,0.00478767]
[1673282292317,7.12025819,17339.0,17338.0,0.005]
[1673282292318,6.16060253,17339.0,17338.0,0.005]
[1673282292537,6.16060253,17339.0,17337.0,0.00478767]
[1673282292538,1.5741898,17338.0,17337.0,0.00478767]
[1673282292807,2.62091415,17338.0,17337.0,0.00478767]
[1673282293066,2.75204163,17338.0,17337.0,0.00478767]
[1673282293367,3.35554695,17338.0,17337.0,0.00978767]
[1673282293581,3.01476491,17338.0,17337.0,0.00478767]
[1673282293818,3.01476491,17338.0,17337.0,0.00978767]
[1673282293819,2.39001815,17338.0,17337.0,0.00978767]
[1673282294307,3.32368311,17338.0,17337.0,0.00978767]
[1673282294810,3.19068311,17338.0,17337.0,0.00478767]
[1673282295059,3.33218311,17338.0,17337.0,0.00978767]
[1673282295312,3.37155915,17338.0,17337.0,0.00478767]
[1673282295557,3.37155915,17338.0,17337.0,0.00978767]
[1673282295558,3.15967338,17338.0,17337.0,0.00978767]
[1673282295877,4.03644038,17338.0,17337.0,0.00978767]
[1673282296325,3.90344038,17338.0,17337.0,0.00478767]
[1673282296572,4.03544038,17338.0,17337.0,0.00978767]
[1673282297823,4.20774249,17338.0,17337.0,0.00978767]
[1673282298358,4.57596674,17338.0,17337.0,0.00978767]
[1673282298573,5.5549873,17338.0,17337.0,0.00978767]
[1673282298824,5.46304658,17338.0,17337.0,0.00978767]
[1673282299321,5.33104658,17338.0,17337.0,0.00478767]
[1673282299574,5.33104658,17338.0,17337.0,0.00978767]
[1673282299575,5.60290628,17338.0,17337.0,0.00978767]
[1673282299820,6.59404546,17338.0,17337.0,0.00978767]
[1673282300061,6.30565546,17338.0,17337.0,0.00978767]
[1673282300797,5.60290628,17338.0,17337.0,0.00978767]
[1673282301047,5.60290628,17338.0,17337.0,0.00478767]
[1673282301048,5.47090628,17338.0,17337.0,0.00478767]
[1673282301296,1.516126,17335.0,17334.0,0.00446882]
[1673282301543,2.57711123,17335.0,17334.0,0.00446882]
[1673282301783,3.93105082,17335.0,17334.0,0.00446882]
[1673282302029,3.15572882,17335.0,17334.0,0.00446882]
[1673282302275,3.28872882,17335.0,17334.0,0.00946882]
[1673282304058,3.86559582,17335.0,17334.0,0.00946882]
[1673282304316,3.86554051,17335.0,17334.0,0.00946882]
[1673282304570,4.45948818,17335.0,17334.0,0.00946882]
[1673282304819,4.63166769,17335.0,17334.0,0.00946882]
[1673282305064,4.45948894,17335.0,17334.0,0.00946882]
[1673282305819,1.76358555,17335.0,17334.0,0.18183094]
[1673282306131,1.76358555,17335.0,17334.0,0.00946882]
[1673282306377,1.58671855,17335.0,17334.0,0.00946882]
[1673282306881,2.16358555,17335.0,17334.0,0.00946882]